bitfinex/quotes_BTCUSD_20241120
["timestamp","ask_amount","ask_price","bid_price","bid_amount"]
[1732090536675,0.0004,92979.0,92978.0,0.23961455]
[1732090536905,0.0104,92979.0,92978.0,0.23961455]
[1732090537376,0.0112548,92979.0,92978.0,0.107552]
[1732090541400,0.0112548,92979.0,92978.0,0.4415633]
[1732090541629,0.0112548,92979.0,92978.0,0.4886625]
[1732090541875,0.0012548,92979.0,92978.0,0.4886625]
[1732090542144,0.0012548,92979.0,92978.0,0.45066654]
[1732090542375,0.0012548,92979.0,92978.0,0.32646855]
[1732090542588,0.0012548,92979.0,92978.0,0.107552]
[1732090542804,0.0012548,92979.0,92978.0,0.10970276]
[1732090544416,0.0012548,92979.0,92969.0,0.19979799]
[1732090544417,0.0012548,92979.0,92967.0,0.118321]
[1732090544564,0.0012548,92979.0,92973.0,0.107557]
[1732090545010,0.0112548,92979.0,92973.0,0.107557]
[1732090545239,0.0112548,92979.0,92974.0,0.107556]
[1732090545878,0.01,92976.0,92972.0,0.107558]
[1732090546127,0.01,92976.0,92972.0,0.107559]
[1732090546339,0.01,92976.0,92971.0,0.10756]
[1732090546340,0.01,92976.0,92974.0,0.107556]
[1732090546787,0.01,92976.0,92965.0,0.00215104]
[1732090546995,0.01,92976.0,92973.0,0.107557]
[1732090547199,0.01,92974.0,92973.0,0.10705166]
[1732090548480,0.01,92974.0,92973.0,0.1092027]
[1732090549501,0.01,92974.0,92973.0,0.10705166]
[1732090550043,0.01,92974.0,92971.0,0.118316]
[1732090550245,0.01,92973.0,92972.0,0.107558]
[1732090550447,0.01,92973.0,92971.0,0.107559]
[1732090550649,0.01,92972.0,92971.0,0.107559]
[1732090555071,0.01,92975.0,92971.0,0.107559]
[1732090555327,0.01,92975.0,92974.0,0.107556]
[1732090557577,0.01,92976.0,92975.0,0.107555]
[1732090559389,0.01,92976.0,92975.0,0.130555]
[1732090559602,0.01,92976.0,92975.0,0.107555]
[1732090560045,0.0012548,92979.0,92975.0,0.107555]
[1732090560046,0.0012548,92979.0,92978.0,0.130552]
[1732090560277,0.0012548,92979.0,92978.0,0.54156319]
[1732090560506,0.0012548,92979.0,92978.0,0.53941254]
[1732090560764,0.0012548,92979.0,92978.0,0.57412909]
[1732090562320,0.19879321,92988.0,92983.0,0.230546]
[1732090562564,0.19879321,92988.0,92987.0,0.35473899]
[1732090562565,0.19873321,92988.0,92987.0,0.35473899]
[1732090562805,0.19873321,92988.0,92987.0,0.46380154]
[1732090563309,0.19867321,92988.0,92987.0,0.46380154]
[1732090563784,0.19867321,92988.0,92987.0,0.53940154]
[1732090564014,0.19867321,92988.0,92987.0,0.56850787]
[1732090564245,0.17106035,92988.0,92987.0,0.69270586]
[1732090564476,0.17106035,92988.0,92987.0,0.54140154]
[1732090564711,0.00119871,92998.0,92997.0,0.35472799]
[1732090564942,0.00119871,92998.0,92997.0,0.49442529]
[1732090565192,0.00113871,92998.0,92997.0,0.50774906]
[1732090565436,0.00113871,92998.0,92997.0,0.58334906]
[1732090565661,0.00113871,92998.0,92997.0,0.61297525]
[1732090565900,0.00113871,92998.0,92997.0,0.55271431]
[1732090566111,0.00107871,92998.0,92997.0,0.55271431]
[1732090566346,0.00107871,92998.0,92997.0,0.55270481]
[1732090567068,0.00101871,92998.0,92997.0,0.55270481]
[1732090567575,0.00101871,92998.0,92997.0,0.58721485]
[1732090569410,0.00101871,92998.0,92997.0,0.58719643]
[1732090569639,0.00101871,92998.0,92997.0,0.61575332]
[1732090570574,0.00101871,92998.0,92997.0,0.61775332]
[1732090570792,0.00101871,92998.0,92997.0,0.61575332]
[1732090571050,0.00101871,92998.0,92997.0,0.61775332]
[1732090571519,0.00101871,92998.0,92997.0,0.58919643]
[1732090571987,0.00101871,92998.0,92997.0,0.59828333]
[1732090572213,0.00101871,92998.0,92997.0,0.64538333]
[1732090572438,0.00101871,92998.0,92997.0,0.82627844]
[1732090572934,0.00101871,92998.0,92997.0,0.6832267]
[1732090573417,0.00101871,92998.0,92997.0,0.6812267]
[1732090573624,0.00101871,92998.0,92997.0,0.6832267]
[1732090574362,0.0140328,93008.0,92999.0,0.107528]
[1732090574603,0.0140328,93008.0,93003.0,0.230523]
[1732090574817,0.0140328,93008.0,93003.0,0.3548814]
[1732090575063,0.0140328,93008.0,93003.0,0.3528814]
[1732090575267,0.0140328,93008.0,93003.0,0.3548814]
[1732090575462,0.0140328,93008.0,93003.0,0.14991573]
[1732090575785,0.0140328,93008.0,93003.0,0.2548814]
[1732090576036,0.0140328,93008.0,93003.0,0.254855]
[1732090577188,0.0140328,93008.0,93003.0,0.24158555]
[1732090577412,0.0140328,93008.0,93003.0,0.23958555]
[1732090577650,0.01892063,93004.0,93003.0,0.33958555]
[1732090577853,0.01892063,93004.0,93003.0,0.34158555]
[1732090578739,0.01886063,93004.0,93003.0,0.34158555]
[1732090580066,6.3e-07,93004.0,93003.0,0.34158555]
[1732090580299,6.3e-07,93004.0,93003.0,0.3753035]
[1732090580552,6.3e-07,93004.0,93003.0,0.34158555]
[1732090581408,6.3e-07,93004.0,93003.0,0.35485575]
[1732090582297,6.3e-07,93004.0,93003.0,0.34158555]
[1732090583422,6.3e-07,93004.0,93003.0,0.33958555]
[1732090584349,6.3e-07,93004.0,93003.0,0.35286724]
[1732090584999,6.3e-07,93004.0,93003.0,0.33157644]
[1732090585646,0.00085523,93004.0,93003.0,0.33157644]
[1732090586316,0.00085523,93004.0,93003.0,0.35457644]
[1732090587044,0.00085523,93004.0,93003.0,0.33157644]
[1732090587268,0.00085523,93004.0,93003.0,0.31829475]
[1732090588383,0.00221903,93008.0,93007.0,0.107518]
[1732090588628,0.00221903,93008.0,93007.0,0.21873064]
[1732090589976,0.00221903,93008.0,93007.0,0.21658055]
[1732090590674,0.00221903,93008.0,93007.0,0.107518]
[1732090592803,0.00221903,93008.0,93007.0,0.15187481]
[1732090593016,0.00221903,93008.0,93007.0,0.15354743]
[1732090593478,0.00221903,93008.0,93007.0,0.15187481]
[1732090597025,0.00307363,93008.0,93007.0,0.15187481]
[1732090597299,0.14167363,93008.0,93007.0,0.15187481]
[1732090597505,0.14167363,93008.0,93007.0,0.04435681]
[1732090597715,0.01,93004.0,93003.0,0.0017092]
[1732090597943,0.1486,93004.0,93003.0,0.0017092]
[1732090599327,0.36518455,93004.0,93003.0,0.0017092]
[1732090599569,0.107534,92994.0,92985.0,0.0112203]
[1732090599820,0.26766255,93004.0,92985.0,0.0112203]
[1732090599821,0.01,92986.0,92985.0,0.0112203]
[1732090600081,0.1386,92986.0,92985.0,0.0112203]
[1732090600308,0.1486,92986.0,92985.0,0.0112203]
[1732090600740,0.1386,92986.0,92985.0,0.1187643]
[1732090601671,0.1486,92986.0,92985.0,0.0112203]
[1732090602108,0.0986,92986.0,92985.0,0.0112203]
[1732090603676,0.206143,92986.0,92985.0,0.0112203]
[1732090603906,0.31520555,92986.0,92985.0,0.0112203]
[1732090604577,0.33520555,92986.0,92985.0,0.0112203]
[1732090604832,0.33520555,92986.0,92978.0,0.0017094]
[1732090604833,0.203051,92979.0,92978.0,0.0017094]
[1732090605045,0.96938221,92979.0,92978.0,0.0017094]
[1732090605259,1.01808221,92979.0,92978.0,0.0017094]
[1732090606178,0.80146866,92979.0,92978.0,0.0017094]
[1732090606420,0.65726866,92979.0,92978.0,0.1092614]
[1732090606637,0.01,92987.0,92978.0,0.0017094]
[1732090606858,0.0755,92991.0,92986.0,0.107543]
[1732090607079,0.0755,92991.0,92978.0,0.0017094]
[1732090607080,0.0487,92997.0,92996.0,0.107531]
[1732090607302,0.0755,92999.0,92998.0,0.107529]
[1732090607543,0.2685,93004.0,92996.0,0.107531]
[1732090607761,0.00307363,93008.0,93007.0,0.107518]
[1732090610361,0.00307363,93008.0,93007.0,0.10966808]
[1732090610999,0.00307363,93008.0,93007.0,0.36377854]
[1732090611223,0.00307363,93008.0,93007.0,0.36577854]
[1732090611452,0.00307363,93008.0,93007.0,0.36377854]
[1732090611911,0.00307363,93008.0,93007.0,0.36577854]
[1732090612116,0.00307363,93008.0,93007.0,0.36377854]
[1732090614579,0.00307363,93008.0,93007.0,0.36577854]
[1732090614793,0.00307363,93008.0,93007.0,0.36377854]
[1732090615500,0.00307363,93008.0,93007.0,0.86377854]
[1732090615720,0.00307363,93008.0,93007.0,0.96577854]
[1732090616566,0.00307363,93008.0,93007.0,0.96377854]
[1732090617000,0.00307363,93008.0,93007.0,0.76249614]
[1732090617219,0.00307363,93008.0,93007.0,0.87201414]
[1732090617439,0.00307363,93008.0,93007.0,0.87001414]
[1732090620391,0.00307363,93008.0,93007.0,0.91901414]
[1732090620622,0.00307363,93008.0,93007.0,0.91701414]
[1732090620837,0.00307363,93008.0,93007.0,0.707518]
[1732090621059,0.00307363,93008.0,93007.0,0.81658055]
[1732090622398,0.00307363,93008.0,93007.0,0.83958055]
[1732090626057,0.00307363,93008.0,93007.0,0.707518]
[1732090626276,0.00307363,93008.0,93007.0,0.607518]
[1732090626973,0.00307363,93008.0,93007.0,0.73171599]
[1732090627616,0.00307363,93008.0,93007.0,0.84077854]
[1732090628342,0.00307363,93008.0,93007.0,0.607518]
[1732090629523,0.00307363,93008.0,93007.0,0.73171599]
[1732090629738,0.00307363,93008.0,93007.0,0.84077854]
[1732090631138,0.00307363,93008.0,93007.0,0.94077854]
[1732090631560,0.04901479,93028.0,93008.0,0.1]
[1732090631795,0.04901479,93028.0,93025.0,0.107497]
[1732090631981,0.04901479,93028.0,93026.0,0.107496]
[1732090632190,0.04901479,93028.0,93027.0,0.107495]
[1732090632624,0.03901479,93028.0,93027.0,0.107495]
[1732090632827,0.04901479,93028.0,93027.0,0.107495]
[1732090633064,0.03901479,93028.0,93025.0,0.107497]
[1732090633284,0.03901479,93028.0,93027.0,0.107495]
[1732090635745,0.03901479,93028.0,93027.0,0.1096448]
[1732090635990,0.03901479,93028.0,93027.0,0.107495]
[1732090637773,0.03901479,93028.0,93027.0,0.12083201]
[1732090638493,0.03895479,93028.0,93027.0,0.12083201]
[1732090641478,0.03895479,93028.0,93027.0,0.01333701]
[1732090641705,0.16845479,93028.0,93027.0,0.01333701]
[1732090642173,0.17845479,93028.0,93027.0,0.01333701]
[1732090643341,0.17845479,93028.0,93027.0,0.12083201]
[1732090643571,0.16845479,93028.0,93027.0,0.12083201]
[1732090643806,0.13085479,93028.0,93027.0,0.01504581]
[1732090644031,0.13170919,93028.0,93027.0,0.01504581]
[1732090644669,0.13170919,93028.0,93027.0,0.01505393]
[1732090650537,0.34826574,93028.0,93027.0,0.01505393]
[1732090650763,0.39436574,93028.0,93027.0,0.01505393]
[1732090651696,0.38265655,93028.0,93027.0,0.01505393]
[1732090651938,0.38265655,93028.0,93027.0,0.0017088]
[1732090652881,0.37265655,93028.0,93027.0,0.0017088]
[1732090654668,0.45575655,93028.0,93027.0,0.0017088]
[1732090656708,0.46575655,93028.0,93027.0,0.0017088]
[1732090657138,0.46661095,93028.0,93027.0,0.0017088]
[1732090658266,0.45661095,93028.0,93027.0,0.0017088]
[1732090658491,0.68461095,93028.0,93027.0,0.0017088]
[1732090658957,0.69461095,93028.0,93027.0,0.0017088]
[1732090660748,0.68461095,93028.0,93027.0,0.0017088]
[1732090660960,0.68461095,93028.0,93027.0,0.5017088]
[1732090661404,0.68461095,93028.0,93027.0,0.27206816]
[1732090661594,0.69461095,93028.0,93027.0,0.27206816]
[1732090662012,0.68461095,93028.0,93027.0,0.27206816]
[1732090665201,0.69461095,93028.0,93027.0,0.27206816]
[1732090668373,0.69461095,93028.0,93027.0,0.27377696]
[1732090670607,0.68461095,93028.0,93027.0,0.27377696]
[1732090670862,0.45541095,93028.0,93027.0,0.27377696]
[1732090671077,0.34791695,93028.0,93027.0,0.27377696]
[1732090671514,0.45541095,93028.0,93027.0,0.27377696]
[1732090672216,0.34791695,93028.0,93027.0,0.27377696]
[1732090672720,0.2288544,93028.0,93027.0,0.27377696]
[1732090676395,0.2288544,93028.0,93027.0,0.38127196]
[1732090676898,0.0008544,93028.0,93027.0,0.38127196]
[1732090678519,0.0008544,93028.0,93027.0,0.45737196]
[1732090680294,0.0008544,93028.0,93027.0,0.27377696]
[1732090681633,0.0008544,93028.0,93027.0,0.38127196]
[1732090681847,0.00058944,93043.0,93027.0,0.38127196]
[1732090681848,0.228,93045.0,93027.0,0.27377696]
[1732090682059,0.107481,93040.0,93027.0,0.38127196]
[1732090682265,0.10906255,93039.0,93027.0,0.27377696]
[1732090682506,0.10906255,93039.0,93032.0,0.107489]
[1732090682739,0.10906255,93039.0,93029.0,0.118242]
[1732090682974,0.10906255,93039.0,93031.0,0.10749]
[1732090683441,0.10906255,93039.0,93029.0,0.118242]
[1732090683879,0.10906255,93039.0,93030.0,0.107492]
[1732090684099,0.10906255,93039.0,93029.0,0.118242]
[1732090684310,0.10906255,93039.0,93031.0,0.10749]
[1732090684943,0.10906255,93039.0,93032.0,0.107489]
[1732090685380,0.10906255,93039.0,93029.0,0.107492]
[1732090685804,0.228,93045.0,93028.0,0.0008544]
[1732090686224,0.10906255,93044.0,93028.0,0.0008544]
[1732090686448,0.10906255,93044.0,93029.0,0.107492]
[1732090686697,0.107478,93042.0,93028.0,0.0008544]
[1732090686938,0.10906255,93041.0,93028.0,0.0008544]
[1732090687151,0.107486,93035.0,93028.0,0.0008544]
[1732090687413,0.214961,93040.0,93028.0,0.0008544]
[1732090687632,0.214966,93038.0,93028.0,0.0008544]
[1732090687864,0.107485,93036.0,93028.0,0.0008544]
[1732090688077,0.107489,93033.0,93028.0,0.0008544]
[1732090688305,0.32403555,93035.0,93028.0,0.0008544]
[1732090688554,0.21655255,93032.0,93028.0,0.0008544]
[1732090688778,0.10906255,93032.0,93028.0,0.0008544]
[1732090689002,0.107493,93029.0,93028.0,0.0008544]
[1732090689233,0.21655555,93029.0,93028.0,0.0008544]
[1732090689951,0.0914,93036.0,93028.0,0.0008544]
[1732090689952,0.0814,93036.0,93028.0,0.0008544]
[1732090690164,0.10749,93032.0,93028.0,0.0008544]
[1732090690371,0.10906255,93031.0,93028.0,0.0008544]
[1732090691019,0.107492,93030.0,93028.0,0.0008544]
[1732090691232,0.21655455,93030.0,93028.0,0.0008544]
[1732090691879,0.10906255,93030.0,93028.0,0.0008544]
[1732090692102,0.10906255,93030.0,93027.0,0.27377696]
[1732090695592,0.0008544,93032.0,93027.0,0.27377696]
[1732090695813,0.0008544,93032.0,93028.0,0.107494]
[1732090696525,0.0008544,93032.0,93031.0,0.107491]
[1732090699620,0.0008544,93032.0,93031.0,0.15126733]
[1732090700724,0.0008544,93032.0,93031.0,0.22786733]
[1732090701773,0.0008544,93032.0,93029.0,0.152592]
[1732090701774,0.0008544,93032.0,93029.0,0.08404312]
[1732090701986,0.0008544,93032.0,93031.0,0.107491]
[1732090703078,0.0008544,93032.0,93031.0,0.217491]
[1732090703505,0.0008544,93032.0,93031.0,0.21964055]
[1732090703716,0.0546635,93063.0,93057.0,0.10746]
[1732090703967,0.10906255,93062.0,93057.0,0.10746]
[1732090704176,0.10906255,93062.0,93054.0,0.118209]
[1732090704177,0.10906255,93062.0,93055.0,0.107462]
[1732090704602,0.10906255,93062.0,93059.0,0.107458]
[1732090704810,2.19989786,93061.0,93044.0,0.107476]
[1732090705041,0.10906255,93060.0,93056.0,0.107461]
[1732090705269,0.10906255,93060.0,93055.0,0.107463]
[1732090705908,0.10906255,93060.0,93054.0,0.107464]
[1732090706383,0.10906255,93060.0,93053.0,0.107465]
[1732090706671,0.10906255,93060.0,93054.0,0.107463]
[1732090707059,0.10906255,93060.0,93056.0,0.107461]
[1732090707978,0.10906255,93060.0,93054.0,0.107463]
[1732090708412,0.21651955,93060.0,93054.0,0.107463]
[1732090708639,0.10906255,93060.0,93054.0,0.107463]
[1732090709383,0.10906255,93060.0,93054.0,0.214926]
[1732090709581,0.10906255,93060.0,93054.0,0.107463]
[1732090710440,0.10906255,93060.0,93055.0,0.107462]
[1732090710686,0.10906255,93060.0,93054.0,0.107463]
[1732090710922,0.10906255,93060.0,93056.0,0.107461]
[1732090711159,0.10906255,93060.0,93055.0,0.107463]
[1732090712084,0.10906255,93060.0,93055.0,0.214926]
[1732090712307,0.10906255,93060.0,93055.0,0.107463]
[1732090712530,0.10906255,93060.0,93056.0,0.107462]
[1732090712759,0.10906255,93060.0,93059.0,0.107458]
[1732090715266,0.10906255,93060.0,93046.0,0.01]
[1732090715486,0.10906255,93059.0,93058.0,0.107458]
[1732090717306,0.0763,93069.0,93063.0,0.107453]
[1732090717517,0.10906255,93068.0,93052.0,0.01]
[1732090717748,1.75689786,93067.0,93066.0,0.10745]
[1732090717967,1.86596041,93067.0,93066.0,0.10745]
[1732090720875,1.75689786,93067.0,93066.0,0.10745]
[1732090723298,2.19989786,93067.0,93066.0,0.10745]
[1732090727095,2.19989786,93067.0,93050.0,0.107468]
[1732090727096,2.30896041,93067.0,93050.0,0.107468]
[1732090727335,0.08285815,93059.0,93046.0,0.0892]
[1732090727593,0.10906255,93058.0,93057.0,0.107461]
[1732090727807,0.10906255,93058.0,93051.0,0.107467]
[1732090728017,0.10906255,93058.0,93057.0,0.107461]
[1732090728742,0.10906255,93058.0,93055.0,0.04296656]
[1732090728984,1.38126866,93067.0,93056.0,0.01]
[1732090729213,0.10906255,93065.0,93047.0,0.01]
[1732090729433,0.10906255,93065.0,93059.0,0.107458]
[1732090729865,0.21651355,93065.0,93059.0,0.107458]
[1732090730095,0.21651355,93065.0,93057.0,0.10746]
[1732090730096,0.0008546,93063.0,93057.0,0.10746]
[1732090730314,0.10906255,93062.0,93057.0,0.10746]
[1732090731010,0.10906255,93062.0,93059.0,0.107458]
[1732090731732,0.10906255,93062.0,93055.0,0.1091712]
[1732090732180,0.10906255,93062.0,93055.0,0.0017092]
[1732090732397,0.107459,93059.0,93055.0,0.0017092]
[1732090732629,0.92769175,93058.0,93055.0,0.1091722]
[1732090734415,0.92769175,93058.0,93055.0,0.0017092]
[1732090734643,0.107462,93056.0,93055.0,0.0017092]
[1732090734882,0.21652455,93056.0,93055.0,0.0017092]
[1732090735795,0.44422455,93056.0,93055.0,0.0017092]
[1732090736932,0.46722455,93056.0,93055.0,0.0017092]
[1732090737146,0.5520827,93056.0,93055.0,0.0017092]
[1732090737377,0.46922455,93056.0,93055.0,0.0017092]
[1732090737610,0.76472455,93056.0,93055.0,0.0017092]
[1732090737875,0.8475827,93056.0,93055.0,0.0017092]
[1732090738518,0.76472455,93056.0,93055.0,0.0017092]
[1732090738968,0.8475827,93056.0,93055.0,0.0017092]
[1732090739185,0.76472455,93056.0,93055.0,0.0017092]
[1732090740486,0.73972455,93056.0,93055.0,0.0017092]
[1732090740716,0.8225827,93056.0,93055.0,0.0017092]
[1732090741153,0.73972455,93056.0,93055.0,0.0017092]
[1732090741443,0.8225827,93056.0,93055.0,0.0017092]
[1732090744873,0.73972455,93056.0,93055.0,0.0017092]
[1732090745121,0.8225827,93056.0,93055.0,0.0017092]
[1732090745394,0.8455827,93056.0,93055.0,0.0017092]
[1732090746058,0.8475827,93056.0,93055.0,0.0017092]
[1732090746278,0.8455827,93056.0,93055.0,0.0017092]
[1732090747628,0.8455827,93056.0,93028.0,0.0017086]
[1732090747629,0.82097885,93056.0,93028.0,0.0017086]
[1732090747877,0.19035115,93029.0,93028.0,0.0017086]
[1732090748093,0.2994137,93029.0,93028.0,0.0017086]
[1732090750142,0.1919207,93029.0,93028.0,0.0017086]
[1732090750396,0.10906255,93029.0,93028.0,0.0017086]
[1732090750607,0.21655555,93029.0,93028.0,0.0017086]
[1732090751506,0.10906255,93029.0,93028.0,0.1092026]
[1732090752370,0.10906255,93029.0,93028.0,0.0017086]
[1732090752600,0.10906255,93029.0,93028.0,0.1092026]
[1732090754212,0.05906255,93029.0,93028.0,0.0017086]
[1732090758816,0.16655555,93029.0,93028.0,0.0017086]
[1732090759918,0.24485555,93029.0,93028.0,0.0017086]
[1732090761737,0.34485555,93029.0,93028.0,0.0017086]
[1732090762187,0.4277137,93029.0,93028.0,0.0017086]
[1732090762836,0.4507137,93029.0,93028.0,0.0017086]
[1732090763073,0.4988137,93029.0,93028.0,0.0017086]
[1732090763308,0.5008137,93029.0,93028.0,0.0017086]
[1732090764420,0.5016686,93029.0,93028.0,0.0017086]
[1732090765553,0.41681045,93029.0,93028.0,0.0017086]
[1732090766861,0.54097295,93029.0,93028.0,0.0017086]
[1732090767097,0.01,93016.0,93009.0,0.107515]
[1732090767302,0.10906255,93015.0,93009.0,0.107515]
[1732090767520,0.10906255,93015.0,93007.0,0.107518]
[1732090767740,0.10906255,93015.0,93001.0,0.107525]
[1732090767949,0.10906255,93015.0,93006.0,0.107518]
[1732090767950,0.107513,93012.0,93006.0,0.107518]
[1732090768165,0.10906255,93011.0,93005.0,0.10752]
[1732090768406,0.10906255,93011.0,93007.0,0.107518]
[1732090768613,0.10906255,93011.0,93002.0,0.107524]
[1732090768831,0.107516,93009.0,93004.0,0.107521]
[1732090769049,0.10906255,93008.0,93005.0,0.107521]
[1732090769280,0.10906255,93008.0,92980.0,0.08736245]
[1732090769481,0.10906255,93008.0,93007.0,0.107518]
[1732090769787,0.10906255,93008.0,93005.0,0.10752]
[1732090770010,0.10906255,93008.0,92990.0,0.0802]
[1732090770250,0.10752,93006.0,93001.0,0.107525]
[1732090770467,0.0763,93012.0,92999.0,0.107527]
[1732090770468,0.21658355,93005.0,92999.0,0.107527]
[1732090770698,0.10906255,93005.0,93000.0,0.107526]
[1732090770933,0.10906255,93005.0,93001.0,0.107525]
[1732090771377,0.10906255,93005.0,93000.0,0.107526]
[1732090771594,0.107525,93002.0,92995.0,0.107532]
[1732090771834,0.10906255,93001.0,92995.0,0.107532]
[1732090772096,0.340955,93000.0,92992.0,0.107535]
[1732090772283,0.107529,92998.0,92992.0,0.21507]
[1732090772528,0.10906255,92997.0,92992.0,0.107535]
[1732090772919,0.10906255,92997.0,92980.0,0.107549]
[1732090773170,0.10906255,92997.0,92978.0,0.0500094]
[1732090773171,0.10906255,92997.0,92993.0,0.107534]
[1732090773440,0.10906255,92997.0,92990.0,0.107537]
[1732090773681,0.107531,92996.0,92990.0,0.107537]
[1732090773891,0.107531,92996.0,92987.0,0.107541]
[1732090773892,0.107535,92993.0,92987.0,0.10754]
[1732090774106,0.10754,92989.0,92978.0,0.0017094]
[1732090774340,0.10906255,92988.0,92978.0,0.0017094]
[1732090774576,0.10906255,92988.0,92985.0,0.107543]
[1732090775027,0.10906255,92988.0,92987.0,0.107541]
[1732090778914,0.2158923,93008.0,92988.0,0.0781]
[1732090779131,0.10906255,93001.0,92998.0,0.107529]
[1732090779564,0.10906255,93001.0,92999.0,0.107527]
[1732090779840,0.10906255,93001.0,92977.0,0.0781]
[1732090780057,0.10906255,93001.0,92989.0,0.107538]
[1732090780296,0.107528,92999.0,92992.0,0.107535]
[1732090780520,0.10906255,92998.0,92989.0,0.107538]
[1732090780741,0.107533,92995.0,92977.0,0.185653]
[1732090780988,0.10906255,92994.0,92988.0,0.107539]
[1732090782342,0.10906255,92994.0,92985.0,0.107543]
[1732090782569,0.29459655,92994.0,92989.0,0.107539]
[1732090783229,0.18706255,92994.0,92989.0,0.107539]
[1732090783690,0.10906255,92994.0,92992.0,0.107535]
[1732090783905,0.0802,93006.0,92977.0,0.185653]
[1732090783906,0.0902,93006.0,92977.0,0.185653]
[1732090784143,0.01,93003.0,92998.0,0.107528]
[1732090784363,0.10906255,93002.0,92998.0,0.107528]
[1732090784594,0.10906255,93002.0,93001.0,0.107525]
[1732090785915,0.10906255,93002.0,92977.0,0.185653]
[1732090786148,0.10906255,93002.0,92997.0,0.107529]
[1732090786386,0.10906255,93002.0,92999.0,0.107527]
[1732090786610,0.10906255,93002.0,92998.0,0.107528]
[1732090786836,0.10906255,93002.0,93000.0,0.107526]
[1732090787066,0.10906255,93002.0,92998.0,0.107528]
[1732090787291,0.10906255,93002.0,92993.0,0.107534]
[1732090787292,0.32411255,93002.0,92993.0,0.107534]
[1732090787524,0.107527,93000.0,92992.0,0.107535]
[1732090787776,0.21659155,92999.0,92992.0,0.107535]
[1732090788011,0.10906255,92999.0,92994.0,0.107533]
[1732090788239,0.10906255,92999.0,92995.0,0.107532]
[1732090788454,0.10906255,92999.0,92984.0,0.1092556]
[1732090788684,0.10906255,92999.0,92984.0,0.0017106]
[1732090788921,0.10906255,92999.0,92995.0,0.107531]
[1732090789347,0.10906255,92999.0,92993.0,0.107534]
[1732090789557,0.10906255,92999.0,92994.0,0.107532]
[1732090790013,0.10906255,92999.0,92996.0,0.10753]
[1732090790245,0.10906255,92999.0,92996.0,0.107531]
[1732090790478,0.10906255,92999.0,92998.0,0.107529]
[1732090796964,0.107541,92988.0,92982.0,0.107547]
[1732090797188,0.10906255,92987.0,92981.0,0.15220641]
[1732090798080,0.10906255,92987.0,92986.0,0.107543]
[1732090800671,0.10906255,92987.0,92985.0,0.107543]
[1732090800877,0.10906255,92987.0,92986.0,0.107543]
[1732090801909,0.107544,92985.0,92980.0,0.107549]
[1732090802175,0.10906255,92985.0,92980.0,0.107549]
[1732090802409,0.10906255,92985.0,92981.0,0.107548]
[1732090802607,0.21660655,92985.0,92979.0,0.10755]
[1732090803000,0.10906255,92985.0,92979.0,0.10755]
[1732090803209,0.10906255,92985.0,92983.0,0.107546]
[1732090804286,0.18566255,92985.0,92983.0,0.107546]
[1732090804499,0.18566255,92985.0,92982.0,0.107547]
[1732090804713,0.18566255,92985.0,92981.0,0.107548]
[1732090804927,0.18566255,92985.0,92979.0,0.10755]
[1732090804928,0.29320655,92985.0,92979.0,0.10755]
[1732090805137,0.34030655,92985.0,92979.0,0.10755]
[1732090805567,0.35030655,92985.0,92974.0,0.107556]
[1732090805772,0.35030655,92985.0,92975.0,0.107554]
[1732090805991,0.35030655,92985.0,92972.0,0.1092678]
[1732090806430,0.35030655,92985.0,92972.0,0.0017098]
[1732090807073,0.35030655,92985.0,92972.0,0.1092678]
[1732090807280,0.35030655,92985.0,92972.0,0.0017098]
[1732090807721,0.35230655,92985.0,92972.0,0.0017098]
[1732090807956,0.46230655,92985.0,92972.0,0.0017098]
[1732090808180,0.48530655,92985.0,92972.0,0.0017098]
[1732090809736,0.48330655,92985.0,92973.0,0.107558]
[1732090809955,0.48330655,92985.0,92972.0,0.0017098]
[1732090810407,0.46030655,92985.0,92972.0,0.0017098]
[1732090810622,0.46030655,92985.0,92977.0,0.107552]
[1732090810844,0.46030655,92985.0,92977.0,0.215104]
[1732090811047,0.46030655,92985.0,92978.0,0.1092604]
[1732090811251,0.46030655,92985.0,92978.0,0.0017094]
[1732090813661,0.46230655,92985.0,92978.0,0.0017094]
[1732090813871,0.46030655,92985.0,92978.0,0.0017094]
[1732090817618,0.46230655,92985.0,92978.0,0.0017094]
[1732090817843,0.46030655,92985.0,92978.0,0.0017094]
[1732090818053,0.46230655,92985.0,92978.0,0.0017094]
[1732090821017,0.45230655,92985.0,92978.0,0.0017094]
[1732090821236,0.46030655,92985.0,92978.0,0.0017094]
[1732090821450,0.45030655,92985.0,92978.0,0.0017094]
[1732090821672,0.46030655,92985.0,92978.0,0.0017094]
[1732090821881,0.11906255,92985.0,92978.0,0.0017094]
[1732090822089,0.23660655,92985.0,92978.0,0.0017094]
[1732090822749,0.23860655,92985.0,92978.0,0.0017094]
[1732090823622,0.23660655,92985.0,92978.0,0.0017094]
[1732090824974,0.23860655,92985.0,92978.0,0.0017094]
[1732090825195,0.22860655,92985.0,92978.0,0.0017094]
[1732090825404,0.23860655,92985.0,92978.0,0.0017094]
[1732090826801,0.22860655,92985.0,92978.0,0.0017094]
[1732090827873,0.25160655,92985.0,92978.0,0.0017094]
[1732090828940,0.76160655,92985.0,92978.0,0.0017094]
[1732090832220,1.50220655,92985.0,92978.0,0.0017094]
[1732090834605,1.58524373,92985.0,92978.0,0.0017094]
[1732090835680,1.58609903,92985.0,92978.0,0.0017094]
[1732090836713,1.22072109,92985.0,92978.0,0.0017094]
[1732090836936,1.13773112,92985.0,92978.0,0.0017094]
[1732090837155,1.22076889,92985.0,92978.0,0.0017094]
[1732090837622,1.07609903,92985.0,92978.0,0.0017094]
[1732090838997,1.17253482,92985.0,92978.0,0.0017094]
[1732090839220,1.07609903,92985.0,92978.0,0.0017094]
[1732090839438,1.08949246,92985.0,92978.0,0.0017094]
[1732090839661,1.08949246,92985.0,92981.0,0.076]
[1732090839662,2.61451571,92985.0,92981.0,0.076]
[1732090839888,2.62451571,92985.0,92981.0,0.076]
[1732090840121,1.5666845,92985.0,92984.0,0.1092556]
[1732090840313,1.5584845,92985.0,92984.0,0.1092556]
[1732090840742,0.0008553,92985.0,92984.0,0.1092556]
[1732090843172,0.0008553,92985.0,92984.0,0.2400556]
[1732090843384,0.0008553,93002.0,92997.0,0.117529]
[1732090843590,0.0008553,93002.0,93001.0,0.238325]
[1732090846495,0.0008553,93002.0,93001.0,0.39155756]
[1732090849673,0.0008553,93002.0,93001.0,0.348325]
[1732090850556,0.0008553,93002.0,93001.0,0.338325]
[1732090850756,0.0008553,93002.0,93001.0,0.238325]
[1732090855207,0.0008553,93002.0,93001.0,0.1308]
[1732090855427,0.0008553,93002.0,93001.0,0.0819]
[1732090855659,0.0008553,93002.0,92998.0,0.1]